Cogmind - Beta 12 @@@ ROGUE MODE // 2024.01.09 @ 20:18:12 Player: Teratos Result: Destroyed by G-34 Mercenary with Small Laser Performance ------------- Evolutions (1) 500 Regions Visited (2) 400 Robots Destroyed (8) 40 Value Destroyed (307) 307 Prototype IDs (0) 0 Alien Tech Used (0) 0 Bonus (0) 0 TOTAL SCORE: 1247 Bonus ------- None Cogmind --------- Core Integrity 0/400 Matter 300/300 Energy 100/100 System Corruption 4% Temperature Cool (6) Movement Core (350) Ox6 Location -9/Materials Parts ------- > --- POWER (1) -------- (None) > --- PROPULSION (4) --- (None) > --- UTILITY (2) ------ Large Storage Unit > --- WEAPON (2) ------- (None) > --- INVENTORY (15) --- (None) Peak State ------------ > --- POWER ------------ Light Ion Engine > --- PROPULSION ------- Light Treads Light Treads Improved Treads Armored Wheel > --- UTILITY ---------- Large Storage Unit Large Storage Unit > --- WEAPON ----------- Heavy EM Pulse Gun Light Assault Rifle > --- INVENTORY -------- (None) [Rating: 12] Favorites ----------- Power Light Ion Engine Engine Light Ion Engine Propulsion Light Treads Treads Light Treads Wheel Armored Wheel Utility Large Storage Unit Storage Large Storage Unit Protection Core Shielding Weapon Light Assault Rifle Energy Gun Heavy EM Pulse Gun Ballistic Gun Light Assault Rifle Build | -11 -10 -9 ------- Run | Jun Mat Mat Slots Evolved 2 | . . 2 Power . | . . . Propulsion 2 | . . 2 Utility . | . . . Weapon . | . . . Parts Attached 21 | 8 3 10 Power 1 | 1 . . Engine 1 | 1 . . Core . | . . . Reactor . | . . . Propulsion 10 | 3 1 6 Treads 6 | 2 1 3 Leg . | . . . Wheel 4 | 1 . 3 Hover . | . . . Flight . | . . . Utility 5 | 2 2 1 Device . | . . . Storage 4 | 2 2 . Processor . | . . . Hackware . | . . . Protection 1 | . . 1 Artifact . | . . . Weapon 5 | 2 . 3 Energy Gun 2 | . . 2 Energy Cannon . | . . . Ballistic Gun 3 | 2 . 1 Ballistic Cannon . | . . . Launcher . | . . . Special Weapon . | . . . Impact Weapon . | . . . Slashing Weapon . | . . . Piercing Weapon . | . . . Special Melee Weapon . | . . . Unidentified Prototypes . | . . . Parts Lost 10 | . . 10 Power 1 | . . 1 Propulsion 5 | . . 5 Utility 1 | . . 1 Weapon 3 | . . 3 Highest Loss Streak 5 | . . 5 To Critical Strikes . | . . . Average Slot Usage (%) 85 | . 96 77 Engine 9 | . 14 6 Treads 24 | . 27 22 Wheel 5 | . . 8 Storage 18 | . 25 13 Protection 4 | . . 7 Energy Gun 4 | . . 8 Ballistic Gun 17 | . 28 9 Naked Turns . | . . . Heaviest Build 47 | 10 45 47 Greatest Support 63 | 20 40 63 Greatest Overweight (x) 15 | . 2 15 Average Overweight (x) . | . 1 1 Largest Inventory Capacity 15 | 8 15 15 Average Capacity 10 | 6 13 15 Most Carried . | . . . Average Carried . | . . . Final Capacity 15 | 8 15 15 Final Carried . | . . . Class Distribution -------------------- 100% | Mutant Dominant Class ---------------- Mutant | -10/Materials Mutant | -9/Materials Resources | -11 -10 -9 ----------- Run | Jun Mat Mat Matter Collected 453 | 198 79 176 Remotely . | . . . Salvage Created 358 | . 79 279 Parts 18 | . 4 14 Haulers Intercepted . | . . . Recyclers Shooed . | . . . Parts Field Recycled . | . . . Retrieved Matter . | . . . Parts Self-Destructed . | . . . Prevented . | . . . Kills | -11 -10 -9 ------- Run | Jun Mat Mat Combat Hostiles Destroyed 8 | . 2 6 Guns 7 | . 2 5 AOE 1 | . . 1 Classes Destroyed 2 | . 1 1 Grunt 6 | . 2 4 Sentry 2 | . . 2 Best Kill Streak 2 | . 1 2 Combat Bots Only 2 | . 1 2 Max Kills in Single Turn 1 | . 1 1 Gunslinging . | . . . Exploded 1 | . . 1 Melee . | . . . Uniques/NPCs Destroyed . | . . . Combat | -11 -10 -9 -------- Run | Jun Mat Mat Damage Taken 1932 | . 382 1550 Core 506 | . 106 400 Absorbed by Shields . | . . . Redirected to Shielding 50 | . . 50 Regen/Repaired (Parts) 98 | . 98 . Core Remaining (%) 78 | 100 57 . Volleys Fired 47 | . 9 38 Largest 2 | . 2 2 Hottest 65 | . 40 65 Shots Fired 67 | . 18 49 Gun 67 | . 18 49 Cannon . | . . . Launcher . | . . . Special . | . . . Kinetic 56 | . 18 38 Thermal 6 | . . 6 Explosive . | . . . Electromagnetic 5 | . . 5 Robot Hit Streak 11 | . 5 11 Robot Miss Streak 4 | . 4 3 Penetration Max . | . . . Secondary Targets . | . . . Shots Hit Robots 47 | . 10 37 Core Hits 18 | . 6 12 Critical Kills . | . . . Critical Parts Destroyed 1 | . . 1 Critical Strikes 2 | . . 2 Destroy 1 | . . 1 Corrupt 1 | . . 1 Melee Attacks . | . . . Impact . | . . . Slashing . | . . . Piercing . | . . . Sneak Attacks . | . . . Combat Hostiles . | . . . Follow-up Attacks . | . . . Damage Inflicted 456 | . 81 375 Guns 426 | . 81 345 Cannons . | . . . Explosions 30 | . . 30 Melee . | . . . Ramming . | . . . Kinetic 333 | . 81 252 Thermal 89 | . . 89 Explosive . | . . . Electromagnetic 34 | . . 34 Impact . | . . . Slashing . | . . . Piercing . | . . . Highest Corruption 4 | . . 4 Average Corruption 4 | . . 4 Corruption Purged . | . . . Corruption Blocked . | . . . Effects 2 | . . 2 Message Errors 1 | . . 1 Energy Discharges 1 | . . 1 Overload Shots . | . . . Overflow Damage . | . . . Projectiles . | . . . Explosions . | . . . Melee . | . . . Knockbacks . | . . . Impact . | . . . Kinetic . | . . . Secondary . | . . . Self-Inflicted Damage 20 | . . 20 Shots 1 | . . 1 Rammed . | . . . Targets Rammed . | . . . Kicked . | . . . Crushed . | . . . Highest Temperature 41 | . 41 31 Average Temperature 14 | . 21 9 Received Heat Transfer 939 | . 210 729 Siege Activations . | . . . Robots Corrupted . | . . . Combat Hostiles . | . . . Parts Fried . | . . . Impact Corruptions . | . . . Robots Melted . | . . . Combat Hostiles . | . . . Parts Melted 1 | . . 1 Heat Transferred 175 | . . 175 Parts Sabotaged . | . . . Parts Stolen . | . . . Parts Stripped . | . . . Power Chain Reactions 1 | . . 1 Missiles Intercepted . | . . . Alert | -11 -10 -9 ------- Run | Jun Mat Mat Peak Influence 133 | . 50 133 Initial . | . . . Average 13 | . 3 39 Maximum Alert Level . | . . . Low Security (%) 100 | 100 100 100 Level 1 . | . . . Level 2 . | . . . Level 3 . | . . . Level 4 . | . . . Level 5 . | . . . High Security . | . . . Max Security . | . . . Squads Dispatched 1 | . . 1 Investigation . | . . . Extermination . | . . . Reinforcement 1 | . . 1 Assault . | . . . Garrison . | . . . Intercept . | . . . Searches Triggered . | . . . Construction Impeded . | . . . Haulers Reinforced . | . . . Active Scanning Responses . | . . . Cargo Convoy Interrupts . | . . . Stealth | -11 -10 -9 --------- Run | Jun Mat Mat Distress Signals 4 | . 1 3 Communications Jammed . | . . . Distress Signals . | . . . Times Spotted 20 | . 5 15 Peak Tracking Total 7 | . 3 7 Tactical Retreats 1 | . . 1 Traps | -11 -10 -9 ------- Run | Jun Mat Mat Traps Triggered . | . . . Indirectly . | . . . Trap Hack Attempts . | . . . Triggered . | . . . Disarmed . | . . . Reprogrammed . | . . . Reused . | . . . Traps Extracted . | . . . Installed . | . . . Triggered . | . . . Machines | -11 -10 -9 ---------- Run | Jun Mat Mat Machines Disabled . | . . . Max in Single Turn . | . . . Machines Repaired . | . . . Machines Sabotaged . | . . . Overloaded Fab Kills . | . . . Hacking | -11 -10 -9 --------- Run | Jun Mat Mat Machines Accessed 1 | . 1 . Terminals . | . . . Fabricators . | . . . Repair Stations 1 | . 1 . Recycling Units . | . . . Scanalyzers . | . . . Garrison Access . | . . . Total Hacks 4 | . 4 . Successful 3 | . 3 . Failed 1 | . 1 . Catastrophic . | . . . Database Lockouts . | . . . Manual . | . . . Terminals . | . . . Fabricators . | . . . Repair Stations 4 | . 4 . Recycling Units . | . . . Scanalyzers . | . . . Garrison Access . | . . . Terminal Hacks . | . . . Fabricator Hacks . | . . . Repair Station Hacks 3 | . 3 . Scan Component 2 | . 2 . Repair 1 | . 1 . Recycling Unit Hacks . | . . . Scanalyzer . | . . . Garrison Access Hacks . | . . . Unauthorized Hacks . | . . . Terminals . | . . . Fabricators . | . . . Repair Stations . | . . . Recycling Units . | . . . Scanalyzers . | . . . Garrison Access . | . . . Data Cores Recovered . | . . . Used . | . . . Hacking Detections 1 | . 1 . Full Trace Events 1 | . 1 . Feedback Events . | . . . Feedback Blocked . | . . . Robot Schematics Acquired . | . . . Robots Built . | . . . Authchips . | . . . Time . | . . . Total Robot Build Rating . | . . . Part Schematics Acquired . | . . . Parts Built . | . . . Authchips . | . . . Time . | . . . Total Part Build Rating . | . . . Parts Repaired 1 | . 1 . Time 26 | . 26 . Parts Recycled . | . . . Recycled Matter . | . . . Retrieved Matter . | . . . Retrieved Components . | . . . Parts Scanalyzed . | . . . Part Schematics Acquired . | . . . Parts Damaged . | . . . Bothacking | -11 -10 -9 ------------ Run | Jun Mat Mat Used RIF Installer . | . . . Robots Hacked . | . . . Non-combat . | . . . Combat . | . . . Robot Hacks Applied . | . . . Relay Couplers Released . | . . . Fabnet Peak Effective % . | . . . Robots Rewired . | . . . Allies Hacked . | . . . Hacks Repelled . | . . . Allies | -11 -10 -9 -------- Run | Jun Mat Mat Total Allies . | . . . Largest Group . | . . . Highest-Rated Group . | . . . Highest-Rated Ally . | . . . Total Orders . | . . . Ally Attacks . | . . . Total Damage . | . . . Kills . | . . . Allies Corrupted . | . . . Allies Melted . | . . . Intel | -11 -10 -9 ------- Run | Jun Mat Mat Robot Analysis Total . | . . . Derelict Logs Recovered . | . . . Drone Launches . | . . . Drone Recoveries . | . . . Exploration | -11 -10 -9 ------------- Run | Jun Mat Mat Turns Passed 2409 | 1080 572 757 Spaces Moved 1173 | 526 218 429 Core 57 | 40 . 17 Treads 832 | 455 218 159 Legs . | . . . Wheels 284 | 31 . 253 Hover . | . . . Flight . | . . . Fastest Speed 50 | 50 160 90 Average Speed 167 | 146 250 150 Slowest Speed 800 | 160 320 800 Overloaded Moves . | . . . Propulsion Burnouts . | . . . Robots Hopped . | . . . Cave-ins Triggered . | . . . Exploration Rate (%) 25 | 35 21 20 Regions Visited 2 Branch Regions . Pre-discovered Areas . | . . . Known Exits Taken . | . . . Unknown Exits Taken 2 | 1 1 . Scrap Searched . | . . . Spaces Dug . | . . . Terrain Destroyed 2 | . . 2 Melee . | . . . Projectile . | . . . AOE 2 | . . 2 Terrain Rammed . | . . . Walls Destroyed . | . . . Machines Disabled . | . . . Actions | -11 -10 -9 --------- Run | Jun Mat Mat Total 1556 | 830 230 496 Wait 308 | 295 . 13 Move 1171 | 525 217 429 Hop . | . . . Pick Up . | . . . Fast Attach 21 | 8 3 10 Attach . | . . . Detach . | . . . Swap . | . . . Drop 9 | 2 1 6 Fire 47 | . 9 38 Melee . | . . . Ram . | . . . Kick . | . . . Crush . | . . . Escape Stasis . | . . . Rewire . | . . . Trap . | . . . Miscellaneous . | . . . Route ------- -11/Junkyard -10/Materials -9/Materials History --------- Turn | Location | Event 68 | -11/Junkyard | Discovered new exit (range 15) 1081 | -11/Junkyard | Entered Materials 1082 | -10/Materials | Build established: Mutant 1535 | -10/Materials | Repaired Lgt. Treads 1595 | -10/Materials | Discovered new exit (range 3) 1653 | -10/Materials | Entered another Materials area 1653 | -9/Materials | Evolved 2 slots: Propulsion x2 2138 | -9/Materials | Lost 3 parts (1p1n1w) 2368 | -9/Materials | Core integrity fell below 50% 2403 | -9/Materials | Core integrity fell below 20% 2410 | -9/Materials | Destroyed by G-34 Mercenary with Small Laser Last Messages --------------- 02192_ Acquired Lgt. Treads. 02195_ K-01 Serf collects debris. 02195_ Dropped Lgt. Assault Rifle. 02198_ K-01 Serf collects debris. 02199_ Acquired Sml. Laser. 02205_ Acquired 44 matter. 02207_ Acquired 10 matter. 02244_ Acquired Assault Rifle. 02324_ Critical hit (Burn: +37). 02326_ Heat Sink melted. 02326_ Y-45 Defender destroyed. 02329_ Acquired 28 matter. 02361_ Sml. Laser destroyed. 02361_ System corrupted by crushing effect (+4). 02366_ Assault Rifle destroyed. 02373_ Lgt. Treads destroyed. 02376_ =LFZ 0U4QARH 2&HL:D=0EDSKY=CU 02392_ Lgt. Treads destroyed. 02394_ Core Shielding destroyed. 02396_ System corrupted: Energy discharge (-39). Map ----- +----------------------------------------------------+ | ???????????????????????????????????????????????? | | ???????????????????????????????????????????????? | | ???????????????????????????????????????????????? | | ???????????????????????????????????????????????? | | ???????????????????????????????????????????????? | | ???????????????????????????????????????????????? | | ???????????????????????????????????????????????? | | ???????????????????????????????????????????????? | | ???????????????????????????????????????????????? | | ???????????????????????????????????????????????? | | ?????????#########?????????????????????????????? | | ?????????# #?????????????????????????????? | | ?????????# #?????????????????????????????? | | ?????????# #?????????????????????????????? | | ?????????# #?????????????????????????????? | | ?????????# #?????????????????????????????? | | ?????????####+####?????????????????????????????? | | ??????????# ###########????????????????????? | | ??????????# ## g #????????????????????? | | ??????????# + """gg #????????????????????? | | ??????????# ## """ #????????????????????? | | ??????????# ## """ !#????????????????????? | | ??????????### #### g #????????????????????? | | ????????????# #??#""" #????????????????????? | | ???########## #??#"R #????????????????????? | | ???# # #??#""" @ #????????????????????? | | ???# =# #??# !#????????????????????? | | ???# # #########+### ?????????????? | | ???# #=%[ ?????????????? | | ???# + ! ?????????????? | | ???# # ?????????????? | | ???# ### #######+### ?????????????? | | ???# #?# #??????????????????????????????? | | ???# #?# #??????????????????????????????? | | ??#######+###?# #??????????????????????????????? | | ??#!! ??# #???# #??????????????????????????????? | | ??#!! ### ###?# #??????????????????????????????? | | ??#// #?# #??????????????????????????????? | | ??#// ### ##?????????????????????????????? | | ??#!! +?????????????????????????????? | | ??#!! ######?????????????????????????????? | | ??##### #??????????????????????????????????? | | ??????### ###???########???????????????????????? | | ????????# #?????# #???????????????????????? | | ????????# #?????# #???????????????????????? | | ????????# ####### """ #???????????????????????? | | ?????#### #= """ #???????????????????????? | | ?????# = += """ #???????????????????????? | | ?????# %=% # #???????????????????????? | | ?????# ! !##+#####???????????????????????? | +----------------------------------------------------+ Best States ------------- Heat Dissipation 28 Energy Generation 10 Energy Capacity 125 Matter Stores 300 Matter Capacity 300 Sight Range 16 Terrain Scan Density 10 Core Shielding 20 Evasion (%) 50 Recoil Reduction 3 Item Schematics ----------------- None Robot Schematics ------------------ None Fabricated ------------ Nothing Alien Tech Used ----------------- None Achievements -------------- None Challenges ------------ None Game ------ Seed AngularSignalRecalibrator Manual? 0 Play Time 00:18:15 Cumulative 65.3 hours Start 2024.01.09 @ 19:58:19 End 2024.01.09 @ 20:18:12 Sessions 1 Manual Loads 0 Difficulty Rogue Special Mode None Game No. 142 Rogue 142 Adventurer 0 Explorer 0 Win Type - Total 0 Types 0/0/0/0/0/0/0/0/0 Lore% 25 Gallery% 31 Achievement% 26 Wizard Run 0 Options --------- ASCII 0 Keyboard 0 Movement Arrows Keybinds 0 Fullscreen 1 Font 18/SmallcapsGlow Map View 76x50 Tactical HUD 1 Map Filters NONE Filters NONE Steam 1 RUN: 1057eb78-b390-4abd-961d-06f0e9312895